Cogmind - Beta 16 @@@ ROGUE MODE // 2025.11.19 @ 20:12:16 // Winter2019/RPGLIKE Player: Jaegerpls Result: Destroyed by L-41 Fighter with Axe Performance ------------- Evolutions (3) 1500 Regions Visited (10) 2000 Robots Destroyed (216) 1080 Value Destroyed (7806) 7806 Prototype IDs (29) 580 Alien Tech Used (0) 0 Bonus (5142) 5142 TOTAL SCORE: 18108 Bonus ------- Triggered High Security 500 High Alert Combat Kills 2806 Follower Combat Kills 907 Entered Garrisons 200 Used RIF Installer 500 Aligned with FarCom 300 Friendly Fire -71 Cogmind --------- Core Integrity 0/1150 Matter 290/300 Energy 660/660 System Corruption 0% Temperature Cool (9) Movement Treading (160) Location -7/Factory Parts ------- > --- POWER (3) -------- Light Nuclear Core Antimatter Reactor Antimatter Reactor > --- PROPULSION (4) --- Heavy Treads Heavy Treads > --- UTILITY (8) ------ Advanced Heat Sink Improved Signal Interpreter Improved Terrain Scanner Armor Integrity Analyzer Particle Charger Advanced System Shield Relay Coupler [NC] (16) System Restoration Module > --- WEAPON (3) ------- Heavy Phase Cannon Heavy Phase Cannon Heavy Phase Cannon > --- INVENTORY (3) ---- Relay Coupler [Sentry] (30) Remote Datajack Scythe Peak State ------------ > --- POWER ------------ Improved Deuterium Engine Antimatter Reactor Antimatter Reactor > --- PROPULSION ------- Heavy Treads Heavy Treads > --- UTILITY ---------- Improved Signal Interpreter Improved Terrain Scanner Armor Integrity Analyzer Transmission Jammer Hacking Suite Advanced System Shield Relay Coupler [NC] System Restoration Module > --- WEAPON ----------- YOLO Cannon Remote Datajack > --- INVENTORY -------- Particle Charger Relay Coupler [Sentry] Scythe [Rating: 95] Favorites ----------- Power Antimatter Reactor Engine Light Deuterium Engine Power Core Light Nuclear Core Reactor Antimatter Reactor Propulsion Aerolev Unit Treads Heavy Treads Hover Unit Aerolev Unit Utility Improved Terrain Scanner Device Improved Terrain Scanner Processor Improved Signal Interpreter Hackware Hacking Suite Protection Light Armor Plating Weapon YOLO Cannon Energy Gun Pulse Rifle Energy Cannon YOLO Cannon Ballistic Gun Assault Rifle Ballistic Cannon Light Cannon Special Weapon Remote Datajack Impact Weapon Heavy Flail Slashing Weapon Scythe Special Melee Weapon Improved Datajack Build | -11 -10 -10 -10 -9 -8 -8 -8 -7 -7 -7 ------- Run | Yrd Mat Min Exi Min Mat Gar Mat Fac Was Fac Slots Evolved 14 | 4 2 . . 3 3 . . 1 . 1 Power 2 | . . . . 1 1 . . . . . Propulsion 3 | 1 . . . 1 1 . . . . . Utility 7 | 2 1 . . 1 1 . . 1 . 1 Weapon 2 | 1 1 . . . . . . . . . Parts Attached 86 | 6 12 8 2 1 23 3 3 4 5 19 Power 13 | 1 . . . . 4 3 . 1 2 2 Engine 7 | 1 . . . . 2 2 . 1 . 1 Core 4 | . . . . . 2 1 . . . 1 Reactor 2 | . . . . . . . . . 2 . Propulsion 17 | 2 2 1 . . 7 . 1 1 3 . Treads 4 | 2 . . . . . . . . 2 . Leg . | . . . . . . . . . . . Wheel . | . . . . . . . . . . . Hover 13 | . 2 1 . . 7 . 1 1 1 . Flight . | . . . . . . . . . . . Utility 27 | 1 4 3 . 1 9 . . 2 . 7 Device 18 | 1 2 3 . 1 6 . . 1 . 4 Storage . | . . . . . . . . . . . Processor 5 | . 1 . . . 2 . . 1 . 1 Hackware 3 | . . . . . 1 . . . . 2 Protection 1 | . 1 . . . . . . . . . Artifact . | . . . . . . . . . . . Weapon 29 | 2 6 4 2 . 3 . 2 . . 10 Energy Gun 10 | . 2 2 . . 1 . . . . 5 Energy Cannon 8 | . 2 2 1 . . . . . . 3 Ballistic Gun 2 | 2 . . . . . . . . . . Ballistic Cannon 2 | . 2 . . . . . . . . . Launcher . | . . . . . . . . . . . Special Weapon 2 | . . . . . . . . . . 2 Impact Weapon 1 | . . . . . 1 . . . . . Slashing Weapon 2 | . . . 1 . 1 . . . . . Piercing Weapon . | . . . . . . . . . . . Special Melee Weapon 2 | . . . . . . . 2 . . . Unidentified Prototypes 7 | . . 1 1 . 3 . . 1 1 . Parts Lost 6 | . . . . . . . . . . 6 Power 1 | . . . . . . . . . . 1 Propulsion . | . . . . . . . . . . . Utility 3 | . . . . . . . . . . 3 Weapon 2 | . . . . . . . . . . 2 Highest Loss Streak 5 | . . . . . . . . . . 5 To Critical Strikes . | . . . . . . . . . . . Average Backups 1 | . . . 1 . . 1 2 3 3 2 Power . | . . . . . . . . . . . Propulsion . | . . . 1 . . . . . . . Utility 1 | . . . . . . 1 2 2 2 1 Weapon . | . . . . . . . . . . . Tool/Special . | . . . . . . . . . . . Unused Backups 6 | . 1 . . . 1 . 1 1 . 2 Power . | . . . . . . . . . . . Propulsion . | . . . . . . . . . . . Utility 5 | . . . . . 1 . 1 1 . 2 Weapon . | . . . . . . . . . . . Tool/Special 1 | . 1 . . . . . . . . . Average Slot Usage (%) 87 | . 97 99 80 61 90 89 93 93 83 82 Engine 8 | . 11 10 10 7 7 4 12 11 6 4 Core 2 | . . . . . 5 9 6 5 . . Reactor 3 | . . . . . . . . . 9 11 Treads 5 | . 21 . . . . . . . 9 11 Hover 14 | . 1 20 20 22 26 24 25 24 2 . Device 23 | . 23 29 23 20 28 25 25 24 23 17 Processor 5 | . 4 . . . . 6 6 6 11 10 Hackware 5 | . . . . . 6 6 6 5 5 12 Protection 2 | . 5 10 10 2 . . . . . . Energy Gun 2 | . 8 10 3 . . . . . . . Energy Cannon 7 | . 1 19 13 7 6 6 6 5 5 5 Ballistic Cannon 1 | . 12 . . . . . . . . . Slashing Weapon 3 | . . . . . 6 6 4 5 5 2 Peak Build Rating 95 | 8 13 32 41 34 64 67 67 72 89 95 Average Rating 55 | 7 11 20 29 33 54 65 66 68 86 90 On Entrance 42 | . 8 13 22 32 34 64 67 67 72 89 Avg Prop Armor Cover (%) 12 | . . . . . . . . . . 12 Naked Turns . | . . . . . . . . . . . Heaviest Build 78 | 10 20 26 32 28 41 42 40 41 63 78 Greatest Support 150 | 40 45 19 19 25 54 51 51 51 150 150 Greatest Overweight (x) 2 | 2 1 1 1 1 1 . . . 1 . Average Overweight (x) . | . . . 1 . . . . . . . Largest Inventory Capacity 3 | 1 1 1 1 1 1 3 3 3 3 3 Average Capacity 1 | 1 1 1 1 1 1 1 3 3 3 3 Most Carried 3 | . 1 1 1 1 1 3 3 3 3 3 Average Carried 1 | . . . 1 . . 1 2 2 3 2 Final Capacity 3 | 1 1 1 1 1 1 3 3 3 3 3 Final Carried 3 | . . 1 1 1 1 3 3 3 3 3 Class Distribution -------------------- 36% | Hacker-Scout 19% | Scavenger-Skirmisher 17% | Hacker-Assassin 10% | Hacker-Skirmisher 9% | Skirmisher 6% | Mutant Dominant Class ---------------- Skirmisher | -10/Materials Scavenger-Skirmisher | -10/Mines Mutant | -10/Exiles Scavenger-Skirmisher | -9/Mines Hacker-Scout | -8/Materials Hacker-Scout | -8/Garrison Hacker-Scout | -8/Materials Hacker-Scout | -7/Factory Hacker-Assassin | -7/Waste Hacker-Assassin | -7/Factory Resources | -11 -10 -10 -10 -9 -8 -8 -8 -7 -7 -7 ----------- Run | Yrd Mat Min Exi Min Mat Gar Mat Fac Was Fac Matter Collected 1837 | 272 471 294 . 40 300 30 60 . 130 240 Remotely 220 | . 16 204 . . . . . . . . Salvage Created 6868 | 114 618 406 . 206 1097 338 545 69 1288 2187 Parts 380 | 6 58 19 . 5 94 31 31 4 17 115 Haulers Intercepted 12 | . 2 . . . 6 . 2 1 . 1 Recyclers Shooed 2 | . 1 . . . 1 . . . . . Parts Field Recycled . | . . . . . . . . . . . Retrieved Matter . | . . . . . . . . . . . Parts Self-Destructed . | . . . . . . . . . . . Prevented . | . . . . . . . . . . . Parts Restored . | . . . . . . . . . . . Kills | -11 -10 -10 -10 -9 -8 -8 -8 -7 -7 -7 ------- Run | Yrd Mat Min Exi Min Mat Gar Mat Fac Was Fac Combat Hostiles Destroyed 148 | . 17 10 . 3 36 13 10 1 6 52 Melee 1 | . . . . . 1 . . . . . Guns 18 | . 14 1 . . . . . . . 3 Cannons 52 | . 1 9 . . 9 . 2 1 2 28 AOE 61 | . 2 . . 1 24 11 8 . . 15 Classes Destroyed 20 | 2 7 . . 1 5 1 . 1 1 2 Worker 13 | . 2 . . 1 5 . 2 . . 3 Builder 9 | . 2 . . . . . 1 1 . 5 Tunneler 6 | 1 . . . . 1 . . . . 4 Hauler 12 | . 2 . . . 6 . 2 1 . 1 Recycler 5 | 1 1 1 . . 1 . . . . 1 Mechanic 1 | . . . . . 1 . . . . . Operator 8 | . 1 . . . 2 . 4 . . 1 Watcher 13 | . 3 . . . 5 . 2 1 . 2 Swarmer 46 | . 9 3 . . 14 10 4 . . 6 Cutter 5 | . . . . . 3 2 . . . . Grunt 59 | . 8 7 . 3 11 . 3 . . 27 Brawler 4 | . . . . . . . . . . 4 Duelist 4 | . . . . 1 . . . . . 3 Protector 5 | . . . . . . . . . . 5 Sentry 11 | . . . . . 6 . 3 . . 2 Specialist 1 | . . . . . . 1 . . . . Hunter 4 | . . . . . 1 . . . . 3 Programmer 3 | . . . . . . . . 1 . 2 Heavy 1 | . . . . . 1 . . . . . Compactor 6 | . . . . . . . . . 6 . Best Kill Streak 16 | 2 5 3 . 3 12 4 5 2 5 16 Combat Bots Only 10 | . 3 3 . 3 10 4 3 1 5 10 Max Kills in Single Turn 4 | 1 2 1 . 2 4 4 3 1 1 4 Gunslinging 1 | . 1 . . . . . . . . . Exploded 4 | . 1 . . 1 4 4 2 . . 2 Melee 1 | . . . . . 1 . . . . . Uniques/NPCs Destroyed . | . . . . . . . . . . . Combat | -11 -10 -10 -10 -9 -8 -8 -8 -7 -7 -7 -------- Run | Yrd Mat Min Exi Min Mat Gar Mat Fac Was Fac Hostile Shots Fired 324 | . 74 39 . 2 72 9 18 4 . 106 Missed 103 | . 23 14 . . 23 3 3 1 . 36 Hits 221 | . 51 25 . 2 49 6 15 3 . 70 Melee 15 | . . . . . 2 3 . . . 10 Projectile 206 | . 51 25 . 2 47 3 15 3 . 60 AOE 3 | . . . . . 1 2 . . . . Critical Strikes 14 | . 1 . . . 4 1 1 . . 7 Part Disruptions 1 | . . . . . . . . . . 1 Damage Taken 4301 | . 627 282 . 65 851 444 238 48 . 1746 Core 3399 | . 502 196 . 31 682 369 189 40 . 1390 Absorbed by Shields 62 | . . . . 6 56 . . . . . Redirected to Core 2925 | . 393 168 . 31 592 268 180 24 . 1269 Regen/Repaired (Parts) 12 | . . . . . . . . . 9 3 Core Remaining (%) 71 | 100 . . . 94 . . 21 . . . Volleys Fired 389 | 2 138 25 . 9 55 20 24 13 8 95 Largest 3 | 2 3 3 . 1 1 1 1 1 1 3 Hottest 270 | 40 185 185 . 100 100 100 100 100 100 270 Shots Fired 619 | 4 273 62 . 9 55 20 24 13 8 151 Gun 234 | 4 190 15 . . . . . . . 25 Cannon 381 | . 83 47 . 9 55 20 24 13 8 122 Launcher . | . . . . . . . . . . . Special 4 | . . . . . . . . . . 4 Kinetic 152 | 4 148 . . . . . . . . . Thermal 410 | . 72 62 . 9 55 20 24 13 8 147 Explosive . | . . . . . . . . . . . Electromagnetic 53 | . 53 . . . . . . . . . Robot Hit Streak 15 | 2 9 8 . 5 9 5 5 7 7 15 Robot Miss Streak 3 | 2 3 2 . . 2 1 1 1 1 3 Penetration Max . | . . . . . . . . . . . Secondary Targets 2 | . 2 . . . . . . . . . Max Gunslinging Chain 1 | . 1 . . . . . . . . . Shots Hit Robots 276 | 2 77 34 . 2 38 10 10 3 6 94 Core Hits 206 | 3 36 14 . 4 42 12 18 1 2 74 Critical Kills 18 | . . . . 2 2 2 . 2 4 6 Critical Parts Destroyed . | . . . . . . . . . . . Critical Strikes 23 | . 2 . . 2 4 3 . 2 4 6 Meltdown 18 | . . . . 2 2 2 . 2 4 6 Blast 2 | . 2 . . . . . . . . . Sever 3 | . . . . . 2 1 . . . . Melee Attacks 107 | . . . . . 47 15 22 10 . 13 Impact 2 | . . . . . 2 . . . . . Slashing 98 | . . . . . 45 15 18 10 . 10 Piercing . | . . . . . . . . . . . Sneak Attacks 8 | . . . . . 2 . 3 . . 3 Combat Hostiles . | . . . . . . . . . . . Follow-up Attacks . | . . . . . . . . . . . Damage Inflicted 26358 | 35 1490 739 . 545 7800 1765 2588 721 1438 9237 Guns 1326 | 35 856 204 . . . . . . . 231 Cannons 12455 | . 307 535 . 239 3507 245 848 448 1001 5325 Explosions 11540 | . 327 . . 306 3788 1023 1705 273 437 3681 Melee 1037 | . . . . . 505 497 35 . . . Ramming . | . . . . . . . . . . . Kinetic 734 | 35 699 . . . . . . . . . Thermal 24005 | . 459 739 . 545 7242 1268 2553 625 1438 9136 Explosive 258 | . 61 . . . . . . 96 . 101 Electromagnetic 324 | . 271 . . . 53 . . . . . Impact . | . . . . . . . . . . . Slashing 1037 | . . . . . 505 497 35 . . . Piercing . | . . . . . . . . . . . Highest Corruption 1 | . . . . . 1 . 1 1 . . Average Corruption 1 | . . . . . 1 . 1 1 . . Corruption Purged 3 | . . . . . 1 . 1 1 . . Corruption Blocked . | . . . . . . . . . . . Overload Shots . | . . . . . . . . . . . Overflow Damage 3270 | . 42 . . 151 1074 320 593 243 . 847 Projectiles 2202 | . . . . 138 644 125 471 228 . 596 Explosions 1019 | . 42 . . 13 424 152 122 15 . 251 Melee 49 | . . . . . 6 43 . . . . Knockbacks 2 | . 2 . . . . . . . . . Impact . | . . . . . . . . . . . Kinetic 2 | . 2 . . . . . . . . . Secondary . | . . . . . . . . . . . Self-Inflicted Damage 855 | . 111 . . 50 115 299 51 . . 229 Shots 14 | . 3 . . 1 2 4 1 . . 3 Rammed . | . . . . . . . . . . . Targets Rammed . | . . . . . . . . . . . Kicked . | . . . . . . . . . . . Crushed . | . . . . . . . . . . . Highest Temperature 381 | . 203 359 . 5 6 9 10 . . 381 Average Temperature 109 | . 54 103 . 5 6 8 8 . . 141 Received Heat Transfer 893 | . 180 144 . 8 138 9 63 . . 351 Effects 3 | . . . . . . . . . . 3 Shutdowns 1 | . . . . . . . . . . 1 Interference 2 | . . . . . . . . . . 2 Siege Activations . | . . . . . . . . . . . Martial Activations . | . . . . . . . . . . . Shielding Activations . | . . . . . . . . . . . Robots Disrupted . | . . . . . . . . . . . Combat Hostiles . | . . . . . . . . . . . Robots Corrupted . | . . . . . . . . . . . Combat Hostiles . | . . . . . . . . . . . Parts Fried 1 | . 1 . . . . . . . . . Impact Corruptions . | . . . . . . . . . . . Robots Melted 19 | . . . . 2 3 2 . 2 4 6 Combat Hostiles 16 | . . . . 2 2 2 . . 4 6 Parts Melted 42 | . 1 7 . 1 14 2 5 1 4 7 Heat Transferred 20645 | . 707 1332 . 530 6180 960 2160 450 1040 7286 Parts Sabotaged . | . . . . . . . . . . . Parts Stolen . | . . . . . . . . . . . Parts Stripped . | . . . . . . . . . . . Power Chain Reactions 3 | . 3 . . . . . . . . . Alert | -11 -10 -10 -10 -9 -8 -8 -8 -7 -7 -7 ------- Run | Yrd Mat Min Exi Min Mat Gar Mat Fac Was Fac Maximum Alert Level 5 | . 1 . . . 4 5 3 1 . 5 Low Security (%) 51 | 100 69 100 . 100 42 . . 66 100 33 Level 1 11 | . 30 . . . 22 . 20 33 . . Level 2 4 | . . . . . 3 . 36 . . 1 Level 3 11 | . . . . . 14 44 43 . . 6 Level 4 11 | . . . . . 17 54 . . . 21 Level 5 7 | . . . . . . 1 . . . 28 High Security 2 | . . . . . . . . . . 8 Max Security . | . . . . . . . . . . . Peak Influence 2598 | 5 331 154 . 125 1543 1618 908 341 128 2598 Initial 876 | . . 124 . . . 876 788 228 117 . Average 530 | . 145 58 . 36 458 1147 611 146 33 1126 Influence Increases 10429 | 10 971 324 . 252 2582 762 980 485 22 4041 Destroy 0b10 Robot/C 3280 | . 340 200 . 60 740 260 200 20 . 1460 Destroy 0b10 Robot/NC 415 | 10 55 5 . 5 105 20 55 15 . 145 Destroy Leader 726 | . 80 40 . 10 202 20 68 14 . 292 Allied During Kill 787 | . . 30 . 15 4 . . . . 738 Successful Hack 73 | . 19 . . . . 10 4 6 . 34 Select Force Hacks 30 | . . . . . . . . . . 30 Disable Machine 2610 | . 270 45 . 75 765 75 330 240 . 810 Anti-Garrison Action 100 | . . . . . . 100 . . . . Destroy Structure 2228 | . 147 4 . 87 721 232 323 190 22 502 Partial Spotted 15 | . . . . . 15 . . . . . Lose Combat Pursuer 165 | . 60 . . . 30 45 . . . 30 Influence Decreases 7831 | 10 652 600 43 252 1234 492 2094 654 357 1443 Entered New Map 2034 | . . 195 43 . . 472 830 276 218 . Time Decay 3463 | 10 527 405 . 252 614 . 514 378 139 624 Lost Part 60 | . . . . . . . . . . 60 Lost Ally 309 | . . . . . 20 20 . . . 269 Purge Threat 1965 | . 125 . . . 600 . 750 . . 490 Squads Dispatched 47 | . 3 1 . . 7 . 3 2 . 31 Investigation 9 | . 2 1 . . 2 . 1 . . 3 Extermination 7 | . . . . . . . . 1 . 6 Reinforcement 11 | . 1 . . . 4 . 1 1 . 4 Assault 17 | . . . . . 1 . 1 . . 15 Garrison 3 | . . . . . . . . . . 3 Intercept . | . . . . . . . . . . . Searches Triggered . | . . . . . . . . . . . Construction Impeded 4 | . . . . . 1 . 1 . . 2 Haulers Reinforced 1 | . . . . . . . . . . 1 Active Scanning Responses . | . . . . . . . . . . . Cargo Convoy Interrupts . | . . . . . . . . . . . Stealth | -11 -10 -10 -10 -9 -8 -8 -8 -7 -7 -7 --------- Run | Yrd Mat Min Exi Min Mat Gar Mat Fac Was Fac Distress Signals 7 | . 3 . . . 1 . . 1 . 2 Communications Jammed 62 | . . . . . . . . . . 62 Distress Signals 62 | . . . . . . . . . . 62 Times Spotted 185 | . 28 10 . 6 37 3 11 . 5 85 Peak Tracking Total 6 | . 4 3 . 3 6 4 3 2 4 6 Tactical Retreats 6 | . 1 . . . 2 1 . . . 2 Traps | -11 -10 -10 -10 -9 -8 -8 -8 -7 -7 -7 ------- Run | Yrd Mat Min Exi Min Mat Gar Mat Fac Was Fac Traps Triggered 8 | . 2 . . . 2 . . 2 . 2 Indirectly . | . . . . . . . . . . . Trap Hack Attempts . | . . . . . . . . . . . Triggered . | . . . . . . . . . . . Disarmed . | . . . . . . . . . . . Reprogrammed . | . . . . . . . . . . . Reused . | . . . . . . . . . . . Traps Extracted . | . . . . . . . . . . . Installed . | . . . . . . . . . . . Triggered . | . . . . . . . . . . . Machines | -11 -10 -10 -10 -9 -8 -8 -8 -7 -7 -7 ---------- Run | Yrd Mat Min Exi Min Mat Gar Mat Fac Was Fac Machines Disabled 180 | . 18 3 . 5 51 11 22 16 . 54 Max in Single Turn 6 | . 2 1 . 1 4 3 4 3 . 6 Garrison Relay 1 | . . . . . . 1 . . . . Phase Generator 1 | . . . . . . 1 . . . . Machines Repaired . | . . . . . . . . . . . Machines Dismantled . | . . . . . . . . . . . Machines Sabotaged . | . . . . . . . . . . . Overloaded Fab Kills . | . . . . . . . . . . . Hacking | -11 -10 -10 -10 -9 -8 -8 -8 -7 -7 -7 --------- Run | Yrd Mat Min Exi Min Mat Gar Mat Fac Was Fac Machines Accessed 50 | . 5 2 3 . 11 2 9 7 . 11 Terminals 26 | . 3 . . . 8 2 6 2 . 5 Fabricators 3 | . . . . . . . . 1 . 2 Repair Stations 2 | . . . . . . . . 1 . 1 Recycling Units 7 | . 2 . . . 1 . 1 2 . 1 Scanalyzers 5 | . . . . . 1 . 2 1 . 1 Garrison Access 2 | . . . . . 1 . . . . 1 Total Hacks 206 | . 28 2 20 . 31 5 39 19 . 62 Successful 126 | . 18 2 20 . 18 2 20 14 . 32 Failed 77 | . 10 . . . 12 3 18 4 . 30 Catastrophic 6 | . 1 . . . . . 1 . . 4 Database Lockouts 3 | . . . . . 1 . 1 1 . . Manual 122 | . 21 . 1 . 27 3 33 11 . 26 Terminals 128 | . 19 . . . 26 5 32 8 . 38 Fabricators 6 | . . . . . . . . 2 . 4 Repair Stations 3 | . . . . . . . . 1 . 2 Recycling Units 24 | . 9 . . . 2 . 4 6 . 3 Scanalyzers 13 | . . . . . 2 . 3 2 . 6 Garrison Access 10 | . . . . . 1 . . . . 9 Terminal Hacks 57 | . 6 2 20 . 6 2 7 1 . 13 Record 19 | . . . 19 . . . . . . . Part Schematic 2 | . . . . . . . . . . 2 Robot Analysis 6 | . 4 . . . 1 . . . . 1 Open Door 2 | . . 2 . . . . . . . . Level Access Points 1 | . . . . . . . . . . 1 Fabricator Index 1 | . . . . . . . . . . 1 Recycling Unit Index 1 | . . . . . . . . . . 1 Alert Level 6 | . . . . . 1 . 2 1 . 2 Unreport Threat 16 | . 2 . . . 4 . 5 . . 5 Garrison Registry 1 | . . . . . . 1 . . . . Security Stations 1 | . . . . . . 1 . . . . Proto ID Catalog 1 | . . . 1 . . . . . . . Fabricator Hacks 5 | . . . . . . . . 1 . 4 Network Status 2 | . . . . . . . . 1 . 1 Load Schematic 1 | . . . . . . . . . . 1 Build 2 | . . . . . . . . . . 2 Repair Station Hacks . | . . . . . . . . . . . Recycling Unit Hacks 10 | . 5 . . . 1 . 1 2 . 1 Report Inventory 7 | . 2 . . . 1 . 1 2 . 1 Retrieve Components 3 | . 3 . . . . . . . . . Scanalyzer 6 | . . . . . 1 . 1 1 . 3 Retrieve Study 6 | . . . . . 1 . 1 1 . 3 Garrison Access Hacks 2 | . . . . . 1 . . . . 1 Unlock Access 1 | . . . . . 1 . . . . . Coupler Status 1 | . . . . . . . . . . 1 Unauthorized Hacks 46 | . 7 . . . 9 . 11 9 . 10 Terminals 30 | . 5 . . . 8 . 10 4 . 3 Assimilate 1 | . . . . . . . 1 . . . Botnet 11 | . 2 . . . 2 . 3 2 . 2 Skim 18 | . 3 . . . 6 . 6 2 . 1 Fabricators . | . . . . . . . . . . . Repair Stations 2 | . . . . . . . . 1 . 1 Mechanics 2 | . . . . . . . . 1 . 1 Recycling Units 8 | . 2 . . . 1 . . 4 . 1 Monitor 1 | . . . . . . . . 1 . . Reject 6 | . 2 . . . 1 . . 2 . 1 Recyclers 1 | . . . . . . . . 1 . . Scanalyzers 2 | . . . . . . . 1 . . 1 Researchers 2 | . . . . . . . 1 . . 1 Garrison Access 4 | . . . . . . . . . . 4 Broadcast 1 | . . . . . . . . . . 1 Reprogram 1 | . . . . . . . . . . 1 Watchers 1 | . . . . . . . . . . 1 Eject 1 | . . . . . . . . . . 1 Data Cores Recovered 2 | . . . . . 1 . 1 . . . Used 1 | . . . . . 1 . . . . . Hacking Detections 33 | . 4 . . . 8 1 7 5 . 8 Full Trace Events 2 | . . . . . . . 1 . . 1 Feedback Events 1 | . . . . . . . 1 . . . Corruption 1 | . . . . . . . 1 . . . Feedback Blocked . | . . . . . . . . . . . Robot Schematics Acquired . | . . . . . . . . . . . Robots Built 3 | . . . . . . . . . . 3 Authchips . | . . . . . . . . . . . Time 49 | . . . . . . . . . . 49 Total Robot Build Rating 6 | . . . . . . . . . . 6 Part Schematics Acquired 2 | . . . . . . . . . . 2 Parts Built 2 | . . . . . . . . . . 2 Authchips . | . . . . . . . . . . . Time 95 | . . . . . . . . . . 95 Total Part Build Rating 10 | . . . . . . . . . . 10 Part Studies Acquired 4 | . . . . . 1 . 1 1 . 1 Parts Repaired . | . . . . . . . . . . . Time . | . . . . . . . . . . . Parts Recycled . | . . . . . . . . . . . Recycled Matter . | . . . . . . . . . . . Retrieved Matter . | . . . . . . . . . . . Retrieved Components 18 | . 18 . . . . . . . . . Parts Scanalyzed . | . . . . . . . . . . . Part Schematics Acquired . | . . . . . . . . . . . Parts Damaged . | . . . . . . . . . . . Bothacking | -11 -10 -10 -10 -9 -8 -8 -8 -7 -7 -7 ------------ Run | Yrd Mat Min Exi Min Mat Gar Mat Fac Was Fac Used RIF Installer 1 | . . . . . . 1 . . . . Robots Hacked 4 | . . . . . . . . . . 4 Non-combat 4 | . . . . . . . . . . 4 Combat . | . . . . . . . . . . . Robot Hacks Applied 5 | . . . . . . . . . . 5 randomize_corridors 2 | . . . . . . . . . . 2 drop_inventory 1 | . . . . . . . . . . 1 find_station 1 | . . . . . . . . . . 1 amplify_resonance 1 | . . . . . . . . . . 1 Relay Couplers Released 3 | . . . . . . 1 . . . 2 Ejected 2 | . . . . . . . . . . 2 Machine Destruction 1 | . . . . . . 1 . . . . Attached 1 | . . . . . . . . . . 1 Fabnet Peak Effective % . | . . . . . . . . . . . Robots Rewired . | . . . . . . . . . . . Allies Hacked 1 | . . . . . . . . . . 1 Hacks Repelled . | . . . . . . . . . . . Allies | -11 -10 -10 -10 -9 -8 -8 -8 -7 -7 -7 -------- Run | Yrd Mat Min Exi Min Mat Gar Mat Fac Was Fac Total Allies 27 | . . 3 . 1 . 1 . . 18 4 Largest Group 18 | . . 3 3 4 2 1 . . 18 18 Highest-Rated Group 456 | . . 40 40 71 24 31 . . 444 456 Highest-Rated Ally 35 | . . 16 16 31 16 31 . . 35 35 Total Orders . | . . . . . . . . . . . Ally Attacks 237 | . . 1 . 11 10 3 . . . 212 Total Damage 5542 | . . . . 108 88 63 . . . 5283 Kills 37 | . . . . . 1 . . . . 36 Allies Corrupted 3 | . . . . . 1 . . . . 2 Allies Melted . | . . . . . . . . . . . Intel | -11 -10 -10 -10 -9 -8 -8 -8 -7 -7 -7 ------- Run | Yrd Mat Min Exi Min Mat Gar Mat Fac Was Fac Active Infowar (turns) 14650 | 266 1760 1292 646 993 2366 904 1400 903 598 3522 Optics 69 | . . . . . 69 . . . . . Terrain 14650 | 266 1760 1292 646 993 2366 904 1400 903 598 3522 T.N.C. 653 | . 653 . . . . . . . . . Jamming 1423 | . . . . . . . . . . 1423 Robot Analysis Total 6 | . 4 . . . 1 . . . . 1 Derelict Logs Recovered 4 | . . 2 . 2 . . . . . . Drone Launches . | . . . . . . . . . . . Drone Recoveries . | . . . . . . . . . . . Exploration | -11 -10 -10 -10 -9 -8 -8 -8 -7 -7 -7 ------------- Run | Yrd Mat Min Exi Min Mat Gar Mat Fac Was Fac Turns Passed 14733 | 349 1760 1292 646 993 2366 904 1400 903 598 3522 Spaces Moved 8551 | 68 750 792 523 551 1560 598 811 850 341 1707 Core 12 | 12 . . . . . . . . . . Treads 2742 | 56 674 . . . . . . . 305 1707 Legs . | . . . . . . . . . . . Wheels . | . . . . . . . . . . . Hover 5797 | . 76 792 523 551 1560 598 811 850 36 . Flight . | . . . . . . . . . . . Fastest Speed 38 | 50 116 56 116 52 38 38 38 38 38 160 Average Speed 96 | 147 155 115 116 111 50 38 38 38 147 160 Slowest Speed 160 | 160 160 116 116 116 112 38 38 38 160 160 Overloaded Moves . | . . . . . . . . . . . Propulsion Burnouts . | . . . . . . . . . . . Robots Hopped . | . . . . . . . . . . . Potential Cave-ins 9 | . . . . . 4 5 . . . . Cave-ins Triggered . | . . . . . . . . . . . Exploration Rate (%) 68 | 6 96 99 92 99 94 69 54 15 96 37 Regions Visited 10 Branch Regions 3 Pre-discovered Areas 4 | . . 1 . 1 2 . . . . . Known Exits Taken 3 | . . . 1 . 1 . 1 . . . Unknown Exits Taken 4 | 1 1 1 . 1 . . . . . . Scrap Searched 2 | . . 1 . 1 . . . . . . Spaces Dug 531 | . . 1 . 31 147 137 137 63 . 15 Terrain Destroyed 2530 | . 175 4 . 115 826 357 358 218 34 443 Melee 20 | . . . . . 7 . 10 3 . . Projectile 71 | . . 4 . 2 15 11 14 7 1 17 AOE 2439 | . 175 . . 113 804 346 334 208 33 426 Terrain Rammed . | . . . . . . . . . . . Walls Destroyed . | . . . . . . . . . . . Machines Disabled . | . . . . . . . . . . . Actions | -11 -10 -10 -10 -9 -8 -8 -8 -7 -7 -7 --------- Run | Yrd Mat Min Exi Min Mat Gar Mat Fac Was Fac Total 13939 | 310 1104 1118 563 902 2906 1191 1801 1376 416 2252 Wait 4526 | 235 160 261 34 340 1180 544 937 489 30 316 Move 8542 | 67 749 791 522 550 1560 596 810 850 340 1707 Hop . | . . . . . . . . . . . Pick Up 17 | . 4 1 . . 3 2 1 2 1 3 Fast Attach 71 | 6 11 8 2 1 16 3 1 4 5 14 Attach 9 | . 4 . . 1 3 . . . . 1 Detach 11 | . 3 4 . 1 2 . . . . 1 Swap 30 | . . 2 . . 11 2 3 2 2 8 Drop 76 | . 10 10 5 . 18 3 3 6 10 11 Fire 389 | 2 138 25 . 9 55 20 24 13 8 95 Melee 107 | . . . . . 47 15 22 10 . 13 Ram . | . . . . . . . . . . . Kick . | . . . . . . . . . . . Crush . | . . . . . . . . . . . Escape Stasis . | . . . . . . . . . . . Rewire 1 | . . . . . . . . . . 1 Trap . | . . . . . . . . . . . Miscellaneous 160 | . 25 16 . . 11 6 . . 20 82 Route ------- -11/Scrapyard -10/Materials (discovered 6 exits: [*Mat x3] / *Min x2 / [*Sub]) -10/Mines (discovered 4 exits: [*Mat x2] / *Exi / [*Sub]) -10/Exiles (discovered 2 exits: *Min x2) -9/Mines (discovered 2 exits: *Mat x2) -8/Materials (discovered 4 exits: *Fac x3 / Gar) -8/Garrison (discovered 3 exits: *Mat x3) -8/Materials -7/Factory (discovered 4 exits: Fac x2 / *Sto / Low) -7/Waste -7/Factory (discovered 4 exits: *Fac x4) History --------- Turn | Location | Event 1 | -11/Scrapyard | Upgraded with Propulsion slot (x1) 1 | -11/Scrapyard | Upgraded with Utility slot (x2) 1 | -11/Scrapyard | Upgraded with Weapon slot (x1) 4 | -11/Scrapyard | Discovered new exit (range 16) 350 | -11/Scrapyard | Entered Materials 351 | -10/Materials | Build established: Mutant 481 | -10/Materials | Discovered new exit (range 11) 500 | -10/Materials | Discovered new exit (range 12) 654 | -10/Materials | Discovered new exit (range 13) 820 | -10/Materials | Build established: Skirmisher 858 | -10/Materials | Discovered new exit (range 12) 868 | -10/Materials | Reached level 2 876 | -10/Materials | Upgraded with Weapon slot (x1) 1102 | -10/Materials | Discovered new exit (range 15) 1195 | -10/Materials | Discovered new exit (range 14) 1795 | -10/Materials | Reached level 3 1795 | -10/Materials | Upgraded with Utility slot (x1) 2088 | -10/Materials | Build established: Scavenger-Skirmisher 2110 | -10/Materials | Entered Mines 2127 | -10/Mines | Met a Derelict bent on vengeance 2175 | -10/Mines | Assisted by bots powering up and referring to "LRC-V3" 2236 | -10/Mines | Met a Derelict shopkeep closing up shop 2317 | -10/Mines | Discovered new exit (range 13) 2334 | -10/Mines | Reached level 4 2439 | -10/Mines | Found the Drone Emporium 2444 | -10/Mines | Found Prototype Device 2444 | -10/Mines | Identified Bomb Drone Bay 2598 | -10/Mines | Learned location of Zion (-6) 2661 | -10/Mines | Discovered new exit (range 13) 2663 | -10/Mines | Discovered new exit (range 6) 3038 | -10/Mines | Received a Rocket Launcher from a helpful Derelict 3082 | -10/Mines | Deemed a non-threat by the Exiles lab entrance 3082 | -10/Mines | Discovered new exit (range 5) 3402 | -10/Mines | Entered Exiles 3402 | -10/Exiles | Accompanied by 3 allies 3403 | -10/Exiles | Identified exit to Mines 3458 | -10/Exiles | Met 8R-AWN 3480 | -10/Exiles | Met EX-HEX 3515 | -10/Exiles | Met EX-BIN 3536 | -10/Exiles | Aligned with FarCom system 3537 | -10/Exiles | Given EX-Vault access code 3590 | -10/Exiles | Opened EX-Vault 3598 | -10/Exiles | Found Prototype Energy Cannon 3598 | -10/Exiles | Identified YOLO Cannon 3605 | -10/Exiles | Found Longsword +1 3630 | -10/Exiles | Warned to stay clear of 0b10 Research branches 3712 | -10/Exiles | Met EX-DEC 3747 | -10/Exiles | Visited The Gauntlet 3902 | -10/Exiles | Build established: Mutant 4048 | -10/Exiles | Left Exiles lab with YOLO Cannon 4048 | -10/Exiles | Entered Mines 4048 | -9/Mines | Accompanied by 3 allies 4050 | -9/Mines | Reached level 5 4050 | -9/Mines | Upgraded with Power slot (x1) 4050 | -9/Mines | Upgraded with Propulsion slot (x1) 4050 | -9/Mines | Upgraded with Utility slot (x1) 4059 | -9/Mines | Discovered new exit (range 10) 4069 | -9/Mines | Found a hidden stash of uninstalled traps 4146 | -9/Mines | Received a Mining Laser from a helpful Derelict 4323 | -9/Mines | Discovered new exit (range 16) 4338 | -9/Mines | Build established: Scavenger-Skirmisher 5041 | -9/Mines | Entered Materials 5041 | -8/Materials | Accompanied by 2 allies 5043 | -8/Materials | Reached level 6 5188 | -8/Materials | Discovered new exit (range 13) 5285 | -8/Materials | Reached level 7 5296 | -8/Materials | Upgraded with Propulsion slot (x1) 5602 | -8/Materials | Build established: Hacker-Scout 6027 | -8/Materials | Discovered new exit (range 7) 6367 | -8/Materials | Central database locked down 6508 | -8/Materials | Reached level 8 6580 | -8/Materials | Identified exit to Factory 6624 | -8/Materials | Learned location of 1 exit from Extension 6647 | -8/Materials | Reached level 9 6651 | -8/Materials | Upgraded with Utility slot (x1) 6660 | -8/Materials | Learned location of Storage (-7) 6684 | -8/Materials | Learned location of 2 exits from Factory 6696 | -8/Materials | Learned 4 Factory zone layouts 6697 | -8/Materials | Learned Factory terminal intel 6698 | -8/Materials | Learned 4 Lower Caves zone layouts 6699 | -8/Materials | Learned location of Lower Caves (-7) 6708 | -8/Materials | Learned location of 1 exit from Storage 6726 | -8/Materials | Learned location of 1 exit from Recycling 6943 | -8/Materials | Reached level 10 6997 | -8/Materials | Core integrity fell below 50% 7005 | -8/Materials | Reached level 11 7013 | -8/Materials | Upgraded with Power slot (x1) 7030 | -8/Materials | Destroyed 10 combat bots 7041 | -8/Materials | First assault squad dispatched 7254 | -8/Materials | Reached level 12 7407 | -8/Materials | Identified exit to Garrison 7407 | -8/Materials | Entered Garrison 7609 | -8/Garrison | Triggered checkpoint 7731 | -8/Garrison | Discovered new exit (range 59) 7731 | -8/Garrison | Discovered new exit (range 72) 7731 | -8/Garrison | Discovered new exit (range 52) 7764 | -8/Garrison | Core integrity fell below 20% 7770 | -8/Garrison | Rescued a captive Derelict 7870 | -8/Garrison | Identified exit to Materials 7876 | -8/Garrison | Phase Generator disabled 8050 | -8/Garrison | Triggered checkpoint 8136 | -8/Garrison | Learned Materials security intel 8241 | -8/Garrison | Installed Relay Interface Framework 8261 | -8/Garrison | Garrison Relay disabled 8281 | -8/Garrison | Reached level 13 8311 | -8/Garrison | Entered Materials 8387 | -8/Materials | Central database locked down 8918 | -8/Materials | Discovered exit to Factory (range 16) 9111 | -8/Materials | First assault squad dispatched 9659 | -8/Materials | Learned Factory emergency access door positions 9711 | -8/Materials | Entered Factory 9712 | -7/Factory | Identified exit to Factory 9712 | -7/Factory | Core integrity fell below 50% 9713 | -7/Factory | Identified exit to Lower Caves 9713 | -7/Factory | Reached level 14 9715 | -7/Factory | Loaded intel: 25 terminal locations 10176 | -7/Factory | Discovered new exit (range 13) 10249 | -7/Factory | Identified exit to Storage 10424 | -7/Factory | Reached level 15 10428 | -7/Factory | Upgraded with Utility slot (x1) 10491 | -7/Factory | Core integrity fell below 20% 10554 | -7/Factory | Central database locked down 10614 | -7/Factory | Sucked down chute 10614 | -7/Factory | Entered Waste 10632 | -7/Waste | Spotted C-40 Crusher 10632 | -7/Waste | Destroyed C-40 Crusher 10635 | -7/Waste | Spotted C-40 Crusher 10636 | -7/Waste | Destroyed C-40 Crusher 10641 | -7/Waste | Spotted C-40 Crusher 10643 | -7/Waste | Spotted C-40 Crusher 10647 | -7/Waste | Destroyed C-40 Crusher 10647 | -7/Waste | Spotted C-40 Crusher 10647 | -7/Waste | Spotted C-40 Crusher 10651 | -7/Waste | Destroyed C-40 Crusher 10659 | -7/Waste | Destroyed C-40 Crusher 10686 | -7/Waste | Destroyed C-40 Crusher 10866 | -7/Waste | Discovered new exit (range 12) 10945 | -7/Waste | Warlord forces began an assault 10967 | -7/Waste | Build established: Hacker-Assassin 11193 | -7/Waste | Identified exit to Factory 11212 | -7/Waste | Entered Factory 11212 | -7/Factory | Accompanied by 18 allies 11617 | -7/Factory | Fabricated L-31 Rogue (x3) 12173 | -7/Factory | Reached level 16 12455 | -7/Factory | Garrison activated, responded to threat 12490 | -7/Factory | Reached level 17 12490 | -7/Factory | Upgraded with Utility slot (x1) 12812 | -7/Factory | First assault squad dispatched 13408 | -7/Factory | Build established: Hacker-Skirmisher 13724 | -7/Factory | Lost 3 allies 13780 | -7/Factory | Lost 4 allies 13825 | -7/Factory | Destroyed 10 combat bots 13847 | -7/Factory | Reached level 18 13880 | -7/Factory | Destroyed 10 combat bots 14125 | -7/Factory | YOLO Cannon suddenly exploded 14156 | -7/Factory | Lost 5 parts (3u2w) 14451 | -7/Factory | High security lockdown imminent 14481 | -7/Factory | Fabricated Power Amplifier? 14531 | -7/Factory | High security lockdown engaged 14734 | -7/Factory | Destroyed by L-41 Fighter with Axe Last Messages --------------- 14640_ 72 Matter crushed. 14644_ Fusion Modulator explodes. 14644_ I-36 Angel destroyed. 14644_ G-47 Trooper destroyed. 14651_ ALERT: Assault forces dispatched. 14694_ C-45 Heavy ARC bursts open, deploying its payload. 14694_ G-50 Soldier unfolds itself. 14694_ B-48 Gladiator unfolds itself. 14694_ G-47 Trooper unfolds itself. 14694_ M-28 Smith unfolds itself. 14714_ G-50 Soldier destroyed. 14717_ G-47 Trooper suffers critical hit (Meltdown). 14724_ B-48 Gladiator destroyed. 14733_ Dropped Imp. Heat Sink. 14734_ C-45 Heavy ARC bursts open, deploying its payload. 14734_ G-50 Soldier unfolds itself. 14734_ G-47 Trooper unfolds itself. 14734_ L-41 Fighter unfolds itself. 14734_ G-47 Trooper unfolds itself. 14734_ M-28 Smith unfolds itself. Map ----- +----------------------------------------------------+ | !!! " %= [ % # # ####### | | !! # ####"" ! %[ # # | | !! ### ###### =! "# # ####### | | # "# ##+# ## ######## | | ######## ######" ! + ## ######## | | ###### " ""###+##### # ## # # | | ###### " ! =""##! #### # ## # """ # | | ###### " % %%[=%! " """ # | | ###### # """"""###[ ####### ## # """ + | | ################ """"""#"#### + # # | | ############# # | | ############# ! ########## # """####### | | ############# + " + """####### | | ?############ #############%"## """####### | | ####?######## ! % # ##### ##"###! ####### | | ????#?##??### # # ! ### #### #+######## | | ?#?################# " == !! * | | #???#####?########## # !### #### # % | | ??##?#?#?#?######### ## ##### ## ## # | | ??#??##???################ ## ## ## ## # % | | ??????##?################# #####+##### #+#####+# | | ????????################ ## ! ## | | ?????????#####?######### g |## " ## | | ??????????##?###########gg" + "%" | | ??????????#?############ lm %## " % " ## # | | ?????????####?########## @%[=## " g[*# # | | ??????????################%!/## " "%## !# | | ?????????#?########## =%= # " %%%## # | | ???????????###?###### / # "" " ## # | | ??????????########?## # """ """"%## # | | ???????????##?##?#### # """" """"=####### | | ???????????#??#?##### """" # m "%[ ####### | | ??????????####?###### """" # " =####### | | ????????????######### """" #####+#+############ | | ??????????###?####### """" ##### + | | ????????????####################### C ########## | | ?????#???#??####################### ########## | | ???????##?######################### !# | | ?????#?############################ *%# " | | ?#??#?###??######################## !%# """" | | ???#?############################## # """" " | | ??#?### ###################### # """" | | #?##### ######### # # """" | | #### # ########" # # """" | | #### ?# ### # # " """" | | #### ## ##" # " | | #### ##^"""" # # # # | | ###? ## """" # # # ==%=%= ! | | #### ## """" # < % # # =%= | | ####### """" + # " %# ==% ####### | +----------------------------------------------------+ Best States ------------- Heat Dissipation 87 Energy Generation 53 Energy Capacity 790 Matter Stores 300 Matter Capacity 300 Sight Range 20 Robot Scan Range 20 Terrain Scan Range 16 Terrain Scan Density 310 Jamming Range 12 Additional Mass Support 9 Armor Coverage 150 Evasion (%) 57 Armor Integrity Analysis 30 Recoil Reduction 4 Particle Charging 15 Offensive Hacking 25 Defensive Hacking 29 Relay Coupler Types 1 Relay Coupler Value 31 Item Schematics ----------------- Imp. Medium Treads | -7/Factory | Hacked Power Amplifier | -7/Factory | Hacked Robot Schematics ------------------ None Fabricated ------------ L-31 Rogue | x3 | -7/Factory | Preloaded Power Amplifier | x2 | -7/Factory Repaired ---------- Nothing Studied --------- Airjet | -8/Materials | Hacked Scythe | -8/Materials | Hacked Lgt. Deuterium Engine | -7/Factory | Hacked Imp. Datajack | -7/Factory | Hacked Alien Tech Used ----------------- None Achievements -------------- Mindtrick YOLO Challenges ------------ None RPGLIKE | -11 -10 -10 -10 -9 -8 -8 -8 -7 -7 -7 --------- Run | Yrd Mat Min Exi Min Mat Gar Mat Fac Was Fac Levels Raised 17 | . 2 1 . 1 7 1 . 2 . 3 XP Earned 29191 | 3000 3495 1925 350 1255 9489 1549 988 2311 97 4732 XP Spent 28480 | 2990 2975 . . 3000 9755 1720 525 2990 . 4525 Upgrades 67 | 11 8 . . 4 19 9 5 3 . 8 Power Slot 2 | . . . . 1 1 . . . . . Propulsion Slot 3 | 1 . . . 1 1 . . . . . Utility Slot 7 | 2 1 . . 1 1 . . 1 . 1 Weapon Slot 2 | 1 1 . . . . . . . . . Core Integrity 11 | . . . . . . 6 5 . . . Heat Dissipation 8 | 2 . . . . 4 1 . 1 . . Energy Generation 1 | . . . . 1 . . . . . . Energy Storage 1 | . . . . . . . . . . 1 Mass Support 2 | . 1 . . . 1 . . . . . Inventory Capacity 3 | 1 . . . . . 2 . . . . Sensor Range 10 | 1 2 . . . 2 . . . . 5 Terrain Scan Density 3 | 3 . . . . . . . . . . Ranged Accuracy 6 | . 1 . . . 3 . . 1 . 1 Hack Attack % 3 | . 1 . . . 2 . . . . . Hack Defense % 3 | . 1 . . . 2 . . . . . TH Damage % 2 | . . . . . 2 . . . . . Protomatter Created 1334 | . 173 102 . 15 240 100 . 17 174 513 Integrity Restored 3408 | . 516 293 . . 234 132 . . 459 1774 Core 2758 | . 458 240 . . 234 132 . . 459 1235 Parts 650 | . 58 53 . . . . . . . 539 Protomatter Decayed 305 | . . 1 . . 61 4 . . . 239 Game ------ Seed BattleExplosiveCycler Manual? 0 Play Time 03:37:31 Cumulative 103.9 hours Start 2025.11.19 @ 17:16:45 End 2025.11.19 @ 20:12:16 Sessions 1 Manual Loads 0 Difficulty Rogue Special Mode Winter2019/RPGLIKE Game No. 85 Rogue 85 Adventurer 0 Explorer 0 Win Type - Total 0 Types 0/0/0/0/0/0/0/0/0/0 Lore% 62 Gallery% 41 Achievement% 40 Wizard Run 0 Options --------- Layout 0 ASCII 0 Keyboard 0 Movement Mouse Keybinds 0 Fullscreen 2 Font 24/Smallcaps Map View 76x50 Zoom Use 0% Tactical HUD 1 Map Filters NONE Filters NONE Steam 1 RUN: 608df89f-017c-45d0-a4d4-7477875522c8